Cogmind - Beta 16 --- EXPLORER MODE // 2026.01.21 @ 14:27:21 Player: K.K.Y. Result: Destroyed by D-53 Grenadier with Mini Grenade Launcher Performance ------------- Evolutions (0) 0 Regions Visited (2) 400 Robots Destroyed (32) 160 Value Destroyed (500) 500 Prototype IDs (0) 0 Alien Tech Used (0) 0 Bonus (0) 0 TOTAL SCORE: 1060 Bonus ------- None Cogmind --------- Core Integrity 0/250 Matter 300/300 Energy 100/100 System Corruption 0% Temperature Warm (132) Movement Core (400) Ox7 Location -10/Mines Parts ------- > --- POWER (1) -------- (None) > --- PROPULSION (2) --- (None) > --- UTILITY (3) ------ Improved Heat Sink Large Storage Unit > --- WEAPON (2) ------- Particle Gun > --- INVENTORY (15) --- Ion Engine Light Nuclear Core Light Treads Light Treads Light Treads High-capacity Storage Unit Huge Storage Unit Huge Storage Unit Structural Scanner Improved Terrain Scanner ECM Suite ECM Suite Light Armor Plating Mining Laser Peak State ------------ > --- POWER ------------ Ion Engine > --- PROPULSION ------- Light Treads Light Treads > --- UTILITY ---------- Large Storage Unit Structural Scanner Sensor Array > --- WEAPON ----------- Medium Laser Small Laser > --- INVENTORY -------- Light Nuclear Core Light Treads Light Treads Light Treads Improved Heat Sink High-capacity Storage Unit Huge Storage Unit Huge Storage Unit Improved Terrain Scanner ECM Suite ECM Suite Light Armor Plating Particle Gun Mining Laser [Rating: 10] Favorites ----------- Power Ion Engine Engine Ion Engine Propulsion Light Treads Treads Light Treads Utility Structural Scanner Device Structural Scanner Storage Large Storage Unit Weapon Medium Laser Energy Gun Medium Laser Ballistic Gun Assault Rifle Special Weapon Mining Laser Build | -11 -10 -10 ------- Run | Yrd Mat Min Slots Evolved 1 | . 1 . Power . | . . . Propulsion . | . . . Utility 1 | . 1 . Weapon . | . . . Parts Attached 17 | 7 7 3 Power 2 | 1 . 1 Engine 2 | 1 . 1 Core . | . . . Reactor . | . . . Propulsion 4 | 2 2 . Treads 4 | 2 2 . Leg . | . . . Wheel . | . . . Hover . | . . . Flight . | . . . Utility 5 | 2 2 1 Device 3 | 1 1 1 Storage 2 | 1 1 . Processor . | . . . Hackware . | . . . Protection . | . . . Artifact . | . . . Weapon 6 | 2 3 1 Energy Gun 3 | . 2 1 Energy Cannon . | . . . Ballistic Gun 2 | 2 . . Ballistic Cannon . | . . . Launcher . | . . . Special Weapon 1 | . 1 . Impact Weapon . | . . . Slashing Weapon . | . . . Piercing Weapon . | . . . Special Melee Weapon . | . . . Unidentified Prototypes . | . . . Parts Lost 7 | . . 7 Power 2 | . . 2 Propulsion 2 | . . 2 Utility 1 | . . 1 Weapon 2 | . . 2 Highest Loss Streak 6 | . . 6 To Critical Strikes . | . . . Average Backups 9 | 1 8 12 Power . | . . 1 Propulsion 2 | . 2 3 Utility 5 | . 4 7 Weapon 1 | . 1 1 Tool/Special . | . . . Unused Backups 10 | . . 10 Power 2 | . . 2 Propulsion 1 | . . 1 Utility 7 | . . 7 Weapon . | . . . Tool/Special . | . . . Average Slot Usage (%) 93 | . 90 97 Engine 11 | . 11 11 Treads 23 | . 23 24 Device 20 | . 17 24 Storage 12 | . 12 12 Energy Gun 22 | . 20 24 Ballistic Gun 1 | . 2 . Special Weapon 1 | . 2 . Peak Build Rating 10 | 7 9 10 Average Rating 8 | 5 7 9 On Entrance 5 | . 7 9 Avg Prop Armor Cover (%) . | . . . Naked Turns . | . . . Heaviest Build 30 | 19 30 30 Greatest Support 40 | 40 40 40 Greatest Overweight (x) 9 | 1 9 1 Average Overweight (x) . | . . . Largest Inventory Capacity 15 | 10 15 15 Average Capacity 14 | 9 13 15 Most Carried 15 | 5 12 15 Average Carried 9 | 1 8 12 Final Capacity 15 | 10 15 15 Final Carried 14 | 2 12 14 Class Distribution -------------------- 100% | Hacker-Mutant Dominant Class ---------------- Hacker-Mutant | -10/Materials Hacker-Mutant | -10/Mines Resources | -11 -10 -10 ----------- Run | Yrd Mat Min Matter Collected 466 | 314 142 10 Remotely . | . . . Salvage Created 994 | 164 365 465 Parts 66 | 18 26 22 Haulers Intercepted 2 | . 2 . Recyclers Shooed 1 | . 1 . Parts Field Recycled . | . . . Retrieved Matter . | . . . Parts Self-Destructed . | . . . Prevented . | . . . Parts Restored . | . . . Kills | -11 -10 -10 ------- Run | Yrd Mat Min Combat Hostiles Destroyed 24 | . 7 17 Guns 23 | . 7 16 Classes Destroyed 8 | 2 5 1 Builder 1 | . 1 . Tunneler 4 | 4 . . Hauler 2 | . 2 . Recycler 4 | 1 1 2 Watcher 2 | . 2 . Swarmer 12 | . 4 8 Grunt 7 | . 3 4 Assembled 5 | . . 5 Best Kill Streak 5 | 4 2 5 Combat Bots Only 5 | . 2 5 Max Kills in Single Turn 2 | 1 1 2 Gunslinging 1 | . . 1 Exploded . | . . . Melee . | . . . Uniques/NPCs Destroyed . | . . . Combat | -11 -10 -10 -------- Run | Yrd Mat Min Hostile Shots Fired 123 | . 29 94 Missed 36 | . 13 23 Hits 87 | . 16 71 Melee 4 | . . 4 Projectile 83 | . 16 67 AOE 8 | . . 8 Critical Strikes 2 | . . 2 Part Disruptions 1 | . . 1 Damage Taken 764 | . 89 675 Core 251 | . 33 218 Absorbed by Shields . | . . . Ignored by Resistances 488 | . 63 425 Core Remaining (%) 100 | 100 . . Volleys Fired 92 | 11 41 40 Largest 2 | 2 2 2 Hottest 150 | 40 150 105 Shots Fired 177 | 22 79 76 Gun 173 | 22 75 76 Cannon . | . . . Launcher . | . . . Special 4 | . 4 . Kinetic 28 | 22 6 . Thermal 149 | . 73 76 Explosive . | . . . Electromagnetic . | . . . Robot Hit Streak 34 | 20 29 34 Robot Miss Streak 1 | . 1 1 Penetration Max . | . . . Secondary Targets 3 | . 1 2 Max Gunslinging Chain 1 | . 1 1 Shots Hit Robots 149 | 20 61 68 Core Hits 61 | 8 21 32 Critical Kills . | . . . Critical Parts Destroyed . | . . . Critical Strikes 11 | . 6 5 Burn 11 | . 6 5 Melee Attacks . | . . . Impact . | . . . Slashing . | . . . Piercing . | . . . Sneak Attacks . | . . . Combat Hostiles . | . . . Follow-up Attacks . | . . . Damage Inflicted 1810 | 207 749 854 Guns 1786 | 207 725 854 Cannons . | . . . Explosions . | . . . Melee . | . . . Ramming . | . . . Kinetic 259 | 207 52 . Thermal 1551 | . 697 854 Explosive . | . . . Electromagnetic . | . . . Impact . | . . . Slashing . | . . . Piercing . | . . . Highest Corruption . | . . . Average Corruption . | . . . Corruption Purged . | . . . Corruption Blocked . | . . . Overload Shots . | . . . Overflow Damage . | . . . Projectiles . | . . . Explosions . | . . . Melee . | . . . Knockbacks . | . . . Impact . | . . . Kinetic . | . . . Secondary . | . . . Self-Inflicted Damage . | . . . Shots . | . . . Rammed . | . . . Targets Rammed . | . . . Kicked . | . . . Crushed . | . . . Highest Temperature 252 | . 225 252 Average Temperature 79 | . 67 94 Received Heat Transfer 339 | . 27 312 Effects 1 | . . 1 Energy Bleed 1 | . . 1 Siege Activations . | . . . Martial Activations . | . . . Shielding Activations . | . . . Robots Disrupted . | . . . Combat Hostiles . | . . . Robots Corrupted . | . . . Combat Hostiles . | . . . Parts Fried . | . . . Impact Corruptions . | . . . Robots Melted 1 | . . 1 Combat Hostiles 1 | . . 1 Parts Melted 11 | . 7 4 Heat Transferred 4879 | . 2303 2576 Parts Sabotaged . | . . . Parts Stolen . | . . . Parts Stripped . | . . . Power Chain Reactions . | . . . Alert | -11 -10 -10 ------- Run | Yrd Mat Min Maximum Alert Level . | . . . Low Security (%) 100 | 100 100 100 Level 1 . | . . . Level 2 . | . . . Level 3 . | . . . Level 4 . | . . . Level 5 . | . . . High Security . | . . . Max Security . | . . . Peak Influence 75 | 10 60 75 Initial . | . . . Average 8 | 1 5 13 Influence Increases 573 | 25 238 310 Destroy 0b10 Robot/C 380 | . 140 240 Destroy 0b10 Robot/NC 65 | 25 30 10 Destroy Leader 108 | . 48 60 Successful Hack 16 | . 16 . Disable Machine 4 | . 4 . Influence Decreases 573 | 25 238 310 Time Decay 573 | 25 238 310 Squads Dispatched 1 | . 1 . Investigation 1 | . 1 . Extermination . | . . . Reinforcement . | . . . Assault . | . . . Garrison . | . . . Intercept . | . . . Searches Triggered . | . . . Construction Impeded . | . . . Haulers Reinforced . | . . . Active Scanning Responses . | . . . Cargo Convoy Interrupts . | . . . Stealth | -11 -10 -10 --------- Run | Yrd Mat Min Distress Signals 1 | . 1 . Communications Jammed . | . . . Distress Signals . | . . . Times Spotted 46 | . 19 27 Peak Tracking Total 20 | . 5 20 Tactical Retreats 1 | . . 1 Traps | -11 -10 -10 ------- Run | Yrd Mat Min Traps Triggered 3 | . 3 . Indirectly . | . . . Trap Hack Attempts . | . . . Triggered . | . . . Disarmed 4 | . 4 . Reprogrammed 4 | . 4 . Reused . | . . . Traps Extracted . | . . . Installed . | . . . Triggered . | . . . Machines | -11 -10 -10 ---------- Run | Yrd Mat Min Machines Disabled 1 | . 1 . Max in Single Turn 1 | . 1 . Machines Repaired . | . . . Machines Dismantled . | . . . Machines Sabotaged . | . . . Overloaded Fab Kills . | . . . Hacking | -11 -10 -10 --------- Run | Yrd Mat Min Machines Accessed 9 | . 9 . Terminals 7 | . 7 . Fabricators . | . . . Repair Stations . | . . . Recycling Units 2 | . 2 . Scanalyzers . | . . . Garrison Access . | . . . Total Hacks 18 | . 18 . Successful 14 | . 14 . Failed 4 | . 4 . Catastrophic . | . . . Database Lockouts . | . . . Manual 9 | . 9 . Terminals 16 | . 16 . Fabricators . | . . . Repair Stations . | . . . Recycling Units 2 | . 2 . Scanalyzers . | . . . Garrison Access . | . . . Terminal Hacks 6 | . 6 . Robot Analysis 1 | . 1 . Locate Traps 2 | . 2 . Disarm Traps 2 | . 2 . Reprogram Traps 1 | . 1 . Fabricator Hacks . | . . . Repair Station Hacks . | . . . Recycling Unit Hacks 2 | . 2 . Retrieve Components 2 | . 2 . Scanalyzer . | . . . Garrison Access Hacks . | . . . Unauthorized Hacks 6 | . 6 . Terminals 6 | . 6 . Botnet 6 | . 6 . Fabricators . | . . . Repair Stations . | . . . Recycling Units . | . . . Scanalyzers . | . . . Garrison Access . | . . . Data Cores Recovered . | . . . Used . | . . . Hacking Detections 5 | . 5 . Full Trace Events 2 | . 2 . Feedback Events . | . . . Feedback Blocked . | . . . Robot Schematics Acquired . | . . . Robots Built . | . . . Authchips . | . . . Time . | . . . Total Robot Build Rating . | . . . Part Schematics Acquired . | . . . Parts Built . | . . . Authchips . | . . . Time . | . . . Total Part Build Rating . | . . . Part Studies Acquired . | . . . Parts Repaired . | . . . Time . | . . . Parts Recycled . | . . . Recycled Matter . | . . . Retrieved Matter . | . . . Retrieved Components 5 | . 5 . Parts Scanalyzed . | . . . Part Schematics Acquired . | . . . Parts Damaged . | . . . Bothacking | -11 -10 -10 ------------ Run | Yrd Mat Min Used RIF Installer . | . . . Robots Hacked . | . . . Non-combat . | . . . Combat . | . . . Robot Hacks Applied . | . . . Relay Couplers Released . | . . . Fabnet Peak Effective % . | . . . Robots Rewired . | . . . Allies Hacked . | . . . Hacks Repelled . | . . . Allies | -11 -10 -10 -------- Run | Yrd Mat Min Total Allies . | . . . Largest Group . | . . . Highest-Rated Group . | . . . Highest-Rated Ally . | . . . Total Orders . | . . . Ally Attacks . | . . . Total Damage . | . . . Kills . | . . . Allies Corrupted . | . . . Allies Melted . | . . . Intel | -11 -10 -10 ------- Run | Yrd Mat Min Active Infowar (turns) 2321 | 103 1220 998 Sensors 1487 | . 489 998 Structural 2307 | 103 1220 984 Robot Analysis Total 1 | . 1 . Derelict Logs Recovered . | . . . Drone Launches . | . . . Drone Recoveries . | . . . Exploration | -11 -10 -10 ------------- Run | Yrd Mat Min Turns Passed 2356 | 130 1220 1006 Spaces Moved 1251 | 68 644 539 Core 34 | 25 9 . Treads 1217 | 43 635 539 Legs . | . . . Wheels . | . . . Hover . | . . . Flight . | . . . Fastest Speed 50 | 50 160 160 Average Speed 159 | 125 163 160 Slowest Speed 500 | 160 500 240 Overloaded Moves . | . . . Propulsion Burnouts . | . . . Robots Hopped . | . . . Potential Cave-ins . | . . . Cave-ins Triggered . | . . . Exploration Rate (%) 63 | 4 92 95 Regions Visited 2 Branch Regions 1 Pre-discovered Areas . | . . . Known Exits Taken 2 | 1 1 . Unknown Exits Taken . | . . . Scrap Searched . | . . . Spaces Dug . | . . . Terrain Destroyed . | . . . Melee . | . . . Projectile . | . . . AOE . | . . . Terrain Rammed . | . . . Walls Destroyed . | . . . Machines Disabled . | . . . Actions | -11 -10 -10 --------- Run | Yrd Mat Min Total 1426 | 92 729 605 Wait 23 | . 5 18 Move 1249 | 67 643 539 Hop . | . . . Pick Up 32 | 7 21 4 Fast Attach 2 | 2 . . Attach 19 | 5 11 3 Detach 4 | . 3 1 Swap 2 | . 2 . Drop 3 | . 3 . Fire 92 | 11 41 40 Melee . | . . . Ram . | . . . Kick . | . . . Crush . | . . . Escape Stasis . | . . . Rewire . | . . . Trap . | . . . Miscellaneous . | . . . Route ------- -11/Scrapyard -10/Materials (discovered 4 exits: *Mat x3 / *Min) -10/Mines (discovered 3 exits: *Mat x2 / *Exi) History --------- Turn | Location | Event 16 | -11/Scrapyard | Identified exit to Materials 16 | -11/Scrapyard | Discovered exit to Materials (range 15) 131 | -11/Scrapyard | Entered Materials 131 | -10/Materials | Evolved 1 slot: Utility x1 267 | -10/Materials | Identified exit to Mines 267 | -10/Materials | Discovered exit to Mines (range 13) 305 | -10/Materials | Build established: Hacker-Mutant 468 | -10/Materials | Identified exit to Materials 468 | -10/Materials | Discovered exit to Materials (range 16) 1011 | -10/Materials | Discovered exit to Materials (range 3) 1150 | -10/Materials | Discovered exit to Materials (range 11) 1351 | -10/Materials | Entered Mines 1725 | -10/Mines | Discovered exit to Materials (range 7) 1734 | -10/Mines | Discovered exit to Materials (range 12) 2193 | -10/Mines | Deemed a non-threat by the Exiles lab entrance 2193 | -10/Mines | Identified exit to Exiles 2193 | -10/Mines | Discovered exit to Exiles (range 5) 2288 | -10/Mines | Assembled infested the area 2317 | -10/Mines | Core integrity fell below 50% 2353 | -10/Mines | Core integrity fell below 20% 2357 | -10/Mines | Destroyed by D-53 Grenadier with Mini Grenade Launcher Last Messages --------------- 02302_ as-30099 suffers critical hit (Burn). 02311_ Lgt. Treads destroyed. 02315_ as-30099 destroyed. 02317_ as-06640 destroyed. 02318_ U-05 Engineer destroyed. 02319_ Med. Laser destroyed. 02323_ Lgt. Treads destroyed. 02323_ as-88254 destroyed. 02329_ as-88673 suffers critical hit (Burn). 02332_ as-88673 destroyed. 02340_ as-99245 destroyed. 02347_ C-45 Heavy ARC bursts open, deploying its payload. 02347_ D-53 Grenadier unfolds itself. 02348_ Sml. Laser destroyed. 02349_ as-71070 destroyed. 02349_ Sensor Array destroyed. 02350_ as-14736 destroyed. 02355_ Ion Engine destroyed. 02356_ as-53066 destroyed. Map ----- +----------------------------------------------------+ | ?????????????##=%##### % ############## | | ?????????????## [ ###?### ###### | | ?????????????## ##?### ##### | | ?????????????########### ###?### ###? | | ?????????????############ ###?## ### | | ?????????????????????#### ###?### ### | | ????????????????????#### ######## ## | | ????????????????????### ####### | | ????????????????????## | | ????????????????????### # | | ????????????????????###### ##### ### """ | | ?????????????????????##### ##### ### """ # | | ????????????????????????## ##### ## """ # | | ????????????????????????## #### | | ????????????????????????## #### | | ????????????????????????## ##### | | ????????????????#######?## ####### ## | | ???????????????########### ########## | | ?????############# ###### ### ########## | | ?????############ ##### ### ##?????## | | a a ! #### ### ##?????## | | aa =% !# ### ##?????###### | | ######## =######## ## ##?????####### | | ?####### ######### a # ############## # | | ??????## ???????### %% d # ############## | | ?????????????????## @d # # | | ??????????????????# ############### | | ??????????????????## ################# | | ???????????????????### #?????????????### | | ?????????????????????## ##??????????????### | | ??????????????????????#######???????????????###### | | ?????????????????????????????????????????????##### | | ?????????????????????????????????????????????????? | | ?????????????????????????????????????????????????? | | | | | | | | | | | | | | | | | | | | | | | | | | | | | | | | | +----------------------------------------------------+ Best States ------------- Heat Dissipation 39 Energy Generation 10 Energy Capacity 250 Matter Stores 300 Matter Capacity 300 Sight Range 16 Robot Scan Range 14 Terrain Scan Density 10 Resistance: KI 35 Resistance: TH 35 Resistance: EX 35 Resistance: EM 35 Resistance: I 35 Resistance: S 35 Resistance: P 35 Evasion (%) 40 Recoil Reduction 2 Offensive Hacking 20 Item Schematics ----------------- None Robot Schematics ------------------ None Fabricated ------------ Nothing Repaired ---------- Nothing Studied --------- None Alien Tech Used ----------------- None Achievements -------------- None Challenges ------------ None Game ------ Seed CloakingNodeDeconstructor Manual? 0 Play Time 00:14:00 Cumulative 299.8 hours Start 2026.01.21 @ 14:16:48 End 2026.01.21 @ 14:27:21 Sessions 1 Manual Loads 0 Difficulty Explorer Special Mode None Game No. 464 Rogue 0 Adventurer 0 Explorer 464 Win Type - Total 0 Types 0/0/0/0/0/0/0/0/0/0 Lore% 76 Gallery% 70 Achievement% 55 Wizard Run 0 Options --------- Layout 1 ASCII 0 Keyboard 0 Movement Mouse Keybinds 1 Fullscreen 1 Font 24/Smallcaps Map View 50x35 Zoom Use 0% Tactical HUD 1 Map Filters NONE Filters NONE Steam 1 RUN: 87358b4a-9368-4b1d-afa4-43b53eef5b12